fUSD/lending_fUSD_20251217
["ID","MTS","AMOUNT","RATE_DAILY","PERIOD"]
[398866317,1765939844854,-1091.78913046,0.000189,2]
[398866318,1765939844862,-1882.0,0.00018904,2]
[398866319,1765939844871,-500.0,0.00018904,2]
[398866320,1765939844880,-203.94726481,0.00018904,2]
[398866321,1765939844889,-500.0,0.00018904,2]
[398866322,1765939844898,-500.0,0.00018904,2]
[398866323,1765939844908,-252.0,0.00018909,2]
[398866324,1765939844918,-500.0,0.0001894,2]
[398866325,1765939844927,-500.0,0.00018941,2]
[398866326,1765939844936,-1349.0,0.00018957,2]
[398866327,1765939844945,-280.0,0.00018959,2]
[398866328,1765939844955,-1000.96640564,0.0001897,2]
[398866329,1765939844964,-1000.0,0.0001897,2]
[398866330,1765939844973,-167.80495658,0.00018986,2]
[398866331,1765939844982,-161.29247281,0.00018986,2]
[398866332,1765939844990,-169.94573458,0.00018986,2]
[398866333,1765939844999,-165.87520738,0.00018986,2]
[398866334,1765939845009,-221.37050735,0.00018986,2]
[398866335,1765939845019,-164.264555,0.00018986,2]
[398866336,1765939845028,-1100.50121119,0.0001899,2]
[398866337,1765939845037,-1100.50121119,0.0001899,2]
[398866338,1765939845047,-500.0,0.00018991,5]
[398866339,1765939845058,-500.0,0.00018991,6]
[398866340,1765939845067,-151.0,0.00018997,2]
[398866341,1765939845077,-500.0,0.00018999,7]
[398866342,1765939845087,-500.0,0.00018999,8]
[398866343,1765939845098,-500.0,0.00018999,9]
[398866344,1765939845108,-500.0,0.00018999,10]
[398866345,1765939845118,-500.0,0.00018999,11]
[398866346,1765939845128,-500.0,0.00018999,12]
[398866347,1765939845138,-500.0,0.00018999,13]
[398866348,1765939845147,-358.55,0.00018999,14]
[398866349,1765939845156,-500.0,0.00018999,2]
[398866350,1765939845166,-500.0,0.00018999,2]
[398866351,1765939845175,-500.0,0.00018999,2]
[398866352,1765939845185,-500.0,0.00018999,2]
[398866353,1765939845195,-500.0,0.00018999,2]
[398866354,1765939845204,-500.0,0.00018999,2]
[398866355,1765939845213,-500.0,0.00018999,2]
[398866356,1765939845222,-500.0,0.00018999,2]
[398866357,1765939845231,-500.0,0.00018999,2]
[398866358,1765939845241,-500.0,0.00018999,2]
[398866359,1765939845251,-348.55377443,0.00018999,2]
[398866360,1765939845260,-500.0,0.00018999,2]
[398866361,1765939845269,-500.0,0.00018999,2]
[398866362,1765939845279,-500.0,0.00018999,2]
[398866363,1765939845288,-500.0,0.00018999,2]
[398866364,1765939845297,-539.15,0.00018999,2]
[398866365,1765939845306,-300.0,0.00018999,2]
[398866366,1765939845316,-300.0,0.00018999,2]
[398866367,1765939845325,-300.0,0.00018999,2]
[398866368,1765939845334,-307.45786651,0.00018999,2]
[398866369,1765939845343,-300.0,0.00018999,2]
[398866370,1765939845352,-300.0,0.00018999,2]
[398866371,1765939845361,-326739.14988614,0.00019,2]
[398866372,1765939847644,-212.57156174,0.00015696,2]
[398866373,1765939847653,-168.52384109,0.00017673,2]
[398866374,1765939847741,-782.96342547,0.00017673,2]
[398866375,1765939847760,-341.04,0.00017673,2]
[398866376,1765939849760,-161.66530459,0.00015696,2]
[398866377,1765939849770,-3506.47273344,0.00017673,2]
[398866378,1765939849778,-189.89118603,0.00018802,2]
[398866379,1765939849791,-310.10881397,0.00018802,2]
[398866380,1765939849799,-500.0,0.00018803,2]
[398866381,1765939849808,-259.62886169,0.000189,2]
[398866382,1765939849819,-2103.08080836,0.00019,2]
[398866383,1765939849851,-2648.33007392,0.00019,2]
[398866384,1765939850895,-1681.28327184,0.00019,2]
[398866385,1765939850906,-461.74759373,0.00019,2]
[398866386,1765939850917,-3539.83851285,0.00019,2]
[398866387,1765939850949,-2197.04172547,0.00019,2]
[398868586,1765940436852,-300.0,0.00014272,2]
[398868587,1765940436876,-200.0,0.00014272,2]
[398868602,1765940761806,222.41,7.392e-05,2]
[398868603,1765940877709,999.0,0.00014684,3]
[398868673,1765941031834,-267.0,0.00014173,2]
[398868675,1765941031844,-641.55577311,0.00014272,2]
[398868677,1765941031855,-326.9999999,0.00014272,2]
[398868681,1765941031893,-104.44422699,0.00014272,2]
[398868682,1765941031902,-300.0,0.00014272,2]
[398868683,1765941031911,-1200.0,0.00014272,2]
[398868684,1765941031920,-152.76,0.00014273,2]
[398868685,1765941031930,-151.72,0.00014273,2]
[398868686,1765941031939,-151.27,0.00014273,2]
[398868687,1765941031948,-151.33,0.00014273,2]
[398868688,1765941031958,-151.46,0.00014273,2]
[398868689,1765941031967,-151.22,0.00014273,2]
[398868690,1765941031977,-152.93,0.00014273,2]
[398868691,1765941031987,-500.0,0.00014273,2]
[398868692,1765941031996,-501.73327734,0.00014273,2]
[398868693,1765941032006,-500.0,0.00014273,2]
[398868694,1765941032016,-500.0,0.00014273,2]
[398868695,1765941032027,-503.1158733,0.00014273,2]
[398868696,1765941032038,-500.0,0.00014273,2]
[398868697,1765941032047,-500.0,0.00014273,2]
[398868698,1765941032057,-500.0,0.00014273,2]
[398868699,1765941032067,-500.0,0.00014273,2]
[398868700,1765941032080,-500.0,0.00014273,2]
[398868701,1765941032091,-169.82200954,0.000143,2]
[398868702,1765941032101,-200.0,0.00014544,2]
[398868703,1765941032112,-550.6716869,0.00014573,2]
[398868704,1765941032124,-26187.92323982,0.00014573,2]
[398868705,1765941032278,-2332.08059724,0.00014573,2]
[398868706,1765941032289,-497.76627144,0.00014573,2]
[398868707,1765941032332,-3914.6082046,0.00014573,2]
[398868708,1765941032342,-222.41,0.00014785,2]
[398868709,1765941032351,-1000.0,0.00014821,2]
[398868710,1765941032360,-1000.0,0.00014821,2]
[398868711,1765941032369,-1000.0,0.00014821,2]
[398868712,1765941032378,-925.08960189,0.00014821,2]
[398868747,1765941038070,-74.91039811,0.00014821,2]
[398868749,1765941038079,-1000.0,0.00014821,2]
[398868751,1765941038090,-1000.0,0.00014821,2]
[398868753,1765941038099,-1000.0,0.00014821,2]
[398868755,1765941038108,-1000.0,0.00014821,2]
[398868757,1765941038118,-500.0,0.00015073,2]
[398868759,1765941038127,-500.0,0.00015073,2]
[398868761,1765941038136,-500.0,0.00015073,2]
[398868763,1765941038145,-500.0,0.00015073,2]
[398868765,1765941038155,-500.0,0.00015073,2]
[398868767,1765941038164,-500.0,0.00015073,2]
[398868769,1765941038173,-500.0,0.00015073,2]
[398868771,1765941038182,-500.0,0.00015073,2]
[398868773,1765941038191,-500.0,0.00015073,2]
[398868775,1765941038200,-500.0,0.00015073,2]
[398868777,1765941038209,-500.0,0.00015073,2]
[398868779,1765941038218,-500.0,0.00015073,2]
[398868781,1765941038227,-500.0,0.00015073,2]
[398868783,1765941038236,-500.0,0.00015073,2]
[398868785,1765941038245,-500.0,0.00015073,2]
[398868787,1765941038255,-500.0,0.00015073,2]
[398868789,1765941038264,-501.61939676,0.00015073,2]
[398868791,1765941038272,-501.48365919,0.00015073,2]
[398868793,1765941038282,-500.0,0.00015073,2]
[398868795,1765941038291,-500.0,0.00015073,2]
[398868797,1765941038300,-426.01302677,0.00015073,2]
[398868799,1765941038309,-500.0,0.00015073,2]
[398868801,1765941038318,-500.0,0.00015073,2]
[398868803,1765941038327,-500.0,0.00015073,2]
[398868805,1765941038336,-500.0,0.00015073,2]
[398868806,1765941038346,-500.0,0.00015073,2]
[398868808,1765941038355,-500.0,0.00015073,2]
[398868810,1765941038364,-500.0,0.00015073,2]
[398868812,1765941038373,-500.0,0.00015073,2]
[398868814,1765941038382,-500.0,0.00015073,2]
[398868816,1765941038391,-500.0,0.00015073,2]
[398868818,1765941038400,-500.0,0.00015073,2]
[398868820,1765941038409,-500.0,0.00015073,2]
[398868822,1765941038419,-500.0,0.00015073,2]
[398868859,1765941038764,-500.0,0.00015073,2]
[398868861,1765941038774,-505.99812217,0.00015073,2]
[398868864,1765941038784,-150.0,0.00015082,2]
[398868866,1765941038793,-500.0,0.00015154,2]
[398868867,1765941038802,-423.88054823,0.00015368,2]
[398868869,1765941038812,-1500.0,0.00015368,2]
[398868871,1765941038821,-502.92382047,0.00015368,2]
[398868873,1765941038830,-779.39892373,0.00015368,2]
[398868876,1765941038840,-500.0,0.00015368,2]
[398868878,1765941038849,-500.0,0.00015368,2]
[398868880,1765941038859,-1500.0,0.00015368,2]
[398868882,1765941038868,-502.01405848,0.00015368,2]
[398868883,1765941038877,-469.0,0.00015395,2]
[398868885,1765941038887,-13736.9395469,0.000154,2]
[398868887,1765941038896,-388.08020516,0.00015425,2]
[398868889,1765941038905,-570.0,0.00015458,2]
[398868891,1765941038914,-1728.0,0.00015489,2]
[398868893,1765941038923,-78953.27932198,0.00015491,2]
[398868895,1765941038936,-16249.84246615,0.00015491,2]
[398868900,1765941038970,-6599.99875584,0.00015491,2]
[398868909,1765941039047,-10944.79899546,0.00015491,2]
[398868915,1765941039086,-647252.08046057,0.00015491,2]
[398868917,1765941039097,-1347.0,0.0001552,2]
[398868919,1765941039107,-43965.9664,0.00015591,2]
[398868921,1765941039120,-1000.0,0.00015599,2]
[398868923,1765941039129,-183.65569614,0.000156,2]
[398868925,1765941039139,-17549.5871502,0.000156,2]
[398868927,1765941039148,-1053.411224,0.000156,2]
[398868929,1765941039157,-2500.0,0.000156,2]
[398868931,1765941039166,-1000.0,0.00015621,2]
[398868933,1765941039176,-1000.0,0.00015621,2]
[398868935,1765941039185,-1000.0,0.00015621,2]
[398868937,1765941039194,-1000.0,0.00015621,2]
[398868939,1765941039203,-1000.0,0.00015621,2]
[398868941,1765941039211,-1000.0,0.00015621,2]
[398868942,1765941039222,-1000.0,0.00015621,2]
[398868945,1765941039232,-1000.0,0.00015621,2]
[398868947,1765941039242,-588.66689415,0.00015621,2]
[398868949,1765941039251,-1000.0,0.00015621,2]
[398868950,1765941039260,-840.19399092,0.00015621,2]
[398868952,1765941039270,-1000.0,0.00015621,2]
[398868954,1765941039281,-1000.0,0.00015621,2]
[398868957,1765941039291,-1000.0,0.00015621,2]
[398868958,1765941039299,-364.50212484,0.00015621,2]
[398868960,1765941039308,-1000.0,0.00015621,2]
[398868962,1765941039319,-1000.0,0.00015621,2]
[398868965,1765941039328,-1000.0,0.00015621,2]
[398868967,1765941039337,-1000.0,0.00015621,2]
[398868969,1765941039346,-1000.0,0.00015621,2]
[398868970,1765941039355,-1000.0,0.00015621,2]
[398868972,1765941039364,-1000.0,0.00015621,2]
[398868974,1765941039373,-1000.0,0.00015621,2]
[398868976,1765941039383,-1000.0,0.00015621,2]
[398868978,1765941039392,-1000.0,0.00015621,2]
[398868979,1765941039401,-1000.0,0.00015621,2]
[398868980,1765941039410,-1000.0,0.00015621,2]
[398868981,1765941039419,-1000.0,0.00015621,2]
[398868982,1765941039429,-1000.0,0.00015621,2]
[398868983,1765941039439,-1000.0,0.00015621,2]
[398868984,1765941039448,-1000.0,0.00015621,2]
[398868985,1765941039458,-1000.0,0.00015621,2]
[398868986,1765941039467,-420.0,0.00015631,2]
[398868987,1765941039476,-201.77129171,0.00015691,2]
[398868988,1765941039485,-500.0,0.00015691,2]
[398868989,1765941039498,-500.0,0.00015691,2]
[398868990,1765941039509,-500.0,0.00015691,2]
[398868991,1765941039518,-151.0,0.00015691,2]
[398868992,1765941039527,-500.0,0.00015691,2]
[398868993,1765941039538,-151.0,0.00015691,2]
[398868994,1765941039547,-500.0,0.00015691,2]
[398868995,1765941039558,-151.0,0.00015691,2]
[398868996,1765941039566,-200.0,0.00015691,2]
[398868997,1765941039578,-151.0,0.00015691,2]
[398868998,1765941039587,-500.0,0.00015691,2]
[398868999,1765941039597,-151.0,0.00015691,2]
[398869000,1765941039608,-151.0,0.00015691,2]
[398869001,1765941039619,-500.0,0.00015691,2]
[398869002,1765941039629,-151.0,0.00015691,2]
[398869003,1765941039639,-151.0,0.00015691,2]
[398869004,1765941039649,-500.0,0.00015691,2]
[398869005,1765941039659,-151.0,0.00015691,2]
[398869006,1765941039668,-549.85306017,0.00015691,2]
[398869007,1765941039678,-151.0,0.00015691,2]
[398869008,1765941039689,-500.0,0.00015691,2]
[398869009,1765941039699,-151.0,0.00015691,2]
[398869010,1765941039709,-151.0,0.00015691,2]
[398869011,1765941039717,-500.0,0.00015691,2]
[398869012,1765941039727,-151.0,0.00015691,2]
[398869013,1765941039737,-151.0,0.00015691,2]
[398869014,1765941039747,-500.0,0.00015691,2]
[398869015,1765941039756,-151.0,0.00015691,2]
[398869016,1765941039765,-151.0,0.00015691,2]
[398869017,1765941039774,-500.0,0.00015691,2]
[398869018,1765941039783,-151.0,0.00015691,2]
[398869019,1765941039792,-500.0,0.00015691,2]
[398869020,1765941039801,-151.0,0.00015691,2]
[398869021,1765941039810,-151.0,0.00015691,2]
[398869022,1765941039819,-500.0,0.00015691,2]
[398869023,1765941039827,-151.0,0.00015691,2]
[398869025,1765941039837,-161.05928193,0.00015691,2]
[398869027,1765941039845,-500.0,0.00015691,2]
[398869029,1765941039854,-151.0,0.00015691,2]
[398869031,1765941039863,-500.0,0.00015691,2]
[398869033,1765941039872,-151.0,0.00015691,2]
[398869035,1765941039881,-500.0,0.00015691,2]
[398869037,1765941039890,-151.0,0.00015691,2]
[398869038,1765941039899,-200.0,0.00015691,2]
[398869039,1765941039908,-500.0,0.00015691,2]
[398869040,1765941039920,-151.0,0.00015691,2]
[398869041,1765941039929,-500.0,0.00015691,2]
[398869042,1765941039938,-151.0,0.00015691,2]
[398869043,1765941039948,-500.0,0.00015691,2]
[398869044,1765941039957,-151.0,0.00015691,2]
[398869045,1765941039966,-151.0,0.00015691,2]
[398869046,1765941039975,-151.0,0.00015691,2]
[398869047,1765941039985,-151.0,0.00015691,2]
[398869049,1765941039995,-154.11488124,0.00015691,2]
[398869051,1765941040004,-500.0,0.00015691,2]
[398869053,1765941040013,-335.40581772,0.00015691,2]
[398869055,1765941040023,-862.39,0.00015691,2]
[398869056,1765941040033,-151.0,0.00015697,2]
[398869058,1765941040042,-500.0,0.00015699,2]
[398869060,1765941040051,-208.55442295,0.00015699,2]
[398869062,1765941040061,-500.0,0.00015699,2]
[398869064,1765941040070,-500.0,0.00015699,2]
[398869066,1765941040080,-511.58763028,0.00015699,2]
[398869068,1765941040090,-500.0,0.00015699,2]
[398869070,1765941040100,-500.0,0.00015699,2]
[398869072,1765941040109,-500.0,0.00015699,2]
[398869074,1765941040118,-500.0,0.00015699,2]
[398869076,1765941040127,-500.0,0.00015699,2]
[398869078,1765941040136,-500.0,0.00015699,2]
[398869079,1765941040145,-500.0,0.00015699,2]
[398869081,1765941040154,-500.0,0.00015699,2]
[398869083,1765941040163,-500.0,0.00015699,2]
[398869084,1765941040171,-500.0,0.00015699,2]
[398869086,1765941040180,-500.0,0.00015699,2]
[398869088,1765941040189,-500.0,0.00015699,2]
[398869089,1765941040198,-514.77254056,0.00015699,2]
[398869091,1765941040207,-500.0,0.00015699,2]
[398869093,1765941040216,-556.65384487,0.00015699,2]
[398869094,1765941040225,-500.0,0.00015699,2]
[398869096,1765941040234,-506.13509195,0.00015699,2]
[398869097,1765941040243,-1680.0,0.00015699,2]
[398869099,1765941040253,-500.0,0.00015699,2]
[398869101,1765941040262,-500.0,0.00015699,2]
[398869102,1765941040271,-500.0,0.00015699,2]
[398869104,1765941040280,-500.0,0.00015699,2]
[398869106,1765941040289,-500.0,0.00015699,2]
[398869108,1765941040298,-509.43273333,0.00015699,2]
[398869109,1765941040308,-6180.4875,0.000157,2]
[398869111,1765941040317,-832.5962,0.000157,2]
[398869113,1765941040326,-710.0,0.0001573,2]
[398869114,1765941040335,-587.18560618,0.00015734,2]
[398869116,1765941040344,-13736.93954689,0.00015789,2]
[398869118,1765941040353,-510.72092974,0.00015799,2]
[398869120,1765941040363,-500.0,0.00015799,2]
[398869122,1765941040372,-509.78781684,0.00015799,2]
[398869123,1765941040381,-500.0,0.00015799,2]
[398869124,1765941040391,-500.0,0.00015799,2]
[398869125,1765941040400,-500.0,0.00015799,2]
[398869126,1765941040410,-200.41,0.00015853,2]
[398869127,1765941040419,-500.0,0.00015899,2]
[398869128,1765941040428,-3784.53026381,0.000159,2]
[398869129,1765941040437,-3784.53026381,0.000159,2]
[398869130,1765941040447,-3784.53026381,0.000159,2]
[398869131,1765941040456,-3784.53026381,0.000159,2]
[398869132,1765941040465,-3784.53026381,0.000159,2]
[398869133,1765941040475,-2000.0,0.00015916,2]
[398869134,1765941040484,-2000.0,0.00015916,2]
[398869135,1765941040493,-862.39,0.00015965,2]
[398869136,1765941040508,-17549.58715018,0.00015967,2]
[398869137,1765941040520,-160.94997743,0.00016,2]
[398869138,1765941040530,-9999.99,0.00016116,2]
[398869139,1765941040542,-299.99,0.00016116,4]
[398869140,1765941040553,-3482.39,0.00016116,2]
[398869141,1765941040563,-4469.63,0.00016116,2]
[398869142,1765941040572,-932.95018415,0.00016168,2]
[398869143,1765941040582,-500.0,0.00016168,2]
[398869144,1765941040591,-500.0,0.00016168,2]
[398869145,1765941040601,-1530.10800238,0.00016168,2]
[398869146,1765941040610,-500.0,0.00016168,2]
[398869147,1765941040619,-491.33817562,0.00016168,2]
[398869148,1765941040629,-334.85585619,0.00016168,2]
[398869149,1765941040638,-572.06327732,0.00016168,2]
[398869150,1765941040648,-1500.0,0.00016168,2]
[398869151,1765941040658,-1500.0,0.00016168,2]
[398869152,1765941040668,-1500.0,0.00016168,2]
[398869153,1765941040678,-402.50852484,0.00016168,2]
[398869154,1765941040687,-348.7727522,0.00016168,2]
[398869155,1765941040697,-1500.0,0.00016168,2]
[398869156,1765941040707,-1201.9802891,0.00016168,2]
[398869157,1765941040717,-1500.0,0.00016168,2]
[398869158,1765941040727,-1500.0,0.00016168,2]
[398869159,1765941040737,-1500.0,0.00016168,2]
[398869160,1765941040747,-1500.0,0.00016168,2]
[398869161,1765941040756,-1500.0,0.00016168,2]
[398869162,1765941040768,-1500.0,0.00016168,2]
[398869163,1765941040778,-1500.0,0.00016168,2]
[398869164,1765941040788,-1500.0,0.00016168,2]
[398869165,1765941040797,-1500.0,0.00016168,2]
[398869166,1765941040807,-500.0,0.00016168,2]
[398869167,1765941040816,-1458.21718193,0.00016168,2]
[398869168,1765941040826,-895.86438842,0.00016168,2]
[398869169,1765941040835,-1008.89649287,0.00016168,2]
[398869170,1765941040844,-500.47680465,0.00016168,2]
[398869171,1765941040854,-13736.93954689,0.00016178,2]
[398869172,1765941040863,-200.0,0.00016239,2]
[398869173,1765941040872,-500.0,0.00016239,2]
[398869174,1765941040881,-862.39,0.00016239,2]
[398869175,1765941040891,-17549.58715018,0.00016333,2]
[398869176,1765941040901,-589.24,0.00016356,2]
[398869177,1765941040910,-481.46730423,0.00016385,2]
[398869178,1765941040920,-366.83373706,0.00016428,2]
[398869179,1765941040930,-1000.0,0.00016438,2]
[398869180,1765941040939,-1000.0,0.00016438,2]
[398869181,1765941040948,-1000.0,0.00016438,2]
[398869182,1765941040957,-1029.15700818,0.00016438,2]
[398869183,1765941040967,-339.86,0.00016438,2]
[398869184,1765941040976,-339.86,0.00016438,2]
[398869185,1765941040985,-339.86,0.00016438,2]
[398869186,1765941040995,-339.86,0.00016438,2]
[398869187,1765941041004,-339.86,0.00016438,2]
[398869188,1765941041013,-339.86,0.00016438,2]
[398869189,1765941041025,-339.86,0.00016438,2]
[398869190,1765941041034,-339.86,0.00016438,2]
[398869191,1765941041043,-339.86,0.00016438,2]
[398869192,1765941041053,-339.86,0.00016438,2]
[398869193,1765941041063,-339.86,0.00016438,2]
[398869194,1765941041072,-339.86,0.00016438,2]
[398869195,1765941041081,-339.86,0.00016438,2]
[398869196,1765941041091,-339.86,0.00016438,2]
[398869197,1765941041101,-339.86,0.00016438,2]
[398869198,1765941041110,-339.86,0.00016438,2]
[398869199,1765941041119,-339.86,0.00016438,2]
[398869200,1765941041130,-339.86,0.00016438,2]
[398869201,1765941041139,-339.86,0.00016438,2]
[398869202,1765941041149,-339.86,0.00016438,2]
[398869203,1765941041158,-339.86,0.00016438,2]
[398869204,1765941041168,-339.86,0.00016438,2]
[398869205,1765941041177,-339.86,0.00016438,2]
[398869206,1765941041186,-339.92900433,0.00016438,2]
[398869207,1765941041196,-500.0,0.00016438,2]
[398869208,1765941041205,-500.0,0.00016438,2]
[398869209,1765941041214,-500.0,0.00016438,2]
[398869210,1765941041223,-500.0,0.00016438,2]
[398869211,1765941041232,-500.0,0.00016438,2]
[398869212,1765941041242,-600.0,0.00016438,2]
[398869213,1765941041251,-719.0,0.00016438,2]
[398869214,1765941041260,-719.0,0.00016438,2]
[398869215,1765941041270,-719.0,0.00016438,2]
[398869216,1765941041279,-150.0,0.00016438,2]
[398869217,1765941041289,-712.0,0.00016438,2]
[398869218,1765941041298,-712.0,0.00016438,2]
[398869219,1765941041308,-164.55,0.0001644,2]
[398869220,1765941041317,-220.1550629,0.00016457,2]
[398869221,1765941041327,-2500.0,0.00016464,2]
[398869222,1765941041336,-2358.77671532,0.00016464,2]
[398869223,1765941041346,-862.39,0.00016513,2]
[398869224,1765941041356,-13736.93954689,0.00016567,2]
[398869225,1765941041365,-596.5532948,0.00016699,2]
[398869226,1765941041375,-500.0,0.00016699,2]
[398869227,1765941041384,-500.0,0.00016699,2]
[398869228,1765941041393,-500.0,0.00016699,2]
[398869229,1765941041403,-17549.58715018,0.000167,2]
[398869230,1765941041412,-1003.48815273,0.00016716,2]
[398869231,1765941041422,-2000.0,0.00016716,2]
[398869232,1765941041431,-1001.77884562,0.00016716,2]
[398869233,1765941041441,-1071.10024151,0.00016716,2]
[398869234,1765941041451,-2000.0,0.00016716,2]
[398869235,1765941041460,-1229.17576217,0.00016716,2]
[398869236,1765941041470,-254.07074293,0.00016716,2]
[398869237,1765941041480,-1011.12775583,0.00016716,2]
[398869238,1765941041489,-2000.0,0.00016716,2]
[398869239,1765941041500,-1857.82620064,0.00016716,2]
[398869240,1765941041511,-500.93555009,0.00016716,2]
[398869241,1765941041520,-2000.0,0.00016716,2]
[398869242,1765941041529,-2000.0,0.00016716,2]
[398869243,1765941041539,-862.39,0.00016787,2]
[398869244,1765941041548,-5376.43,0.00016819,2]
[398869245,1765941041557,-13736.93954689,0.00016956,2]
[398869246,1765941041567,-933.85,0.00016986,2]
[398869247,1765941041576,-600.0,0.00016986,2]
[398869248,1765941041586,-150.28381276,0.00016986,2]
[398869249,1765941041595,-250.0,0.00017,2]
[398869250,1765941041604,-482.11411576,0.00017003,2]
[398869251,1765941041613,-2000.0,0.00017012,2]
[398869252,1765941041632,-862.39,0.00017061,2]
[398869253,1765941041643,-17549.58715018,0.00017067,2]
[398869254,1765941041652,-150.0,0.00017088,2]
[398869255,1765941041662,-150.0,0.00017088,2]
[398869256,1765941041671,-150.0,0.00017088,2]
[398869257,1765941041681,-150.0,0.00017088,2]
[398869258,1765941041692,-150.0,0.00017088,2]
[398869259,1765941041701,-150.0,0.00017088,2]
[398869260,1765941041710,-151.76569214,0.00017088,2]
[398869261,1765941041720,-152.29741766,0.00017088,2]
[398869262,1765941041729,-153.04105057,0.00017088,2]
[398869263,1765941041739,-152.85734819,0.00017088,2]
[398869264,1765941041748,-150.0,0.00017088,2]
[398869265,1765941041758,-150.0,0.00017103,2]
[398869266,1765941041767,-524.0,0.0001712,2]
[398869267,1765941041776,-1053.411224,0.00017134,2]
[398869268,1765941041786,-152.0,0.00017189,2]
[398869269,1765941041795,-152.0,0.00017189,2]
[398869270,1765941041805,-152.0,0.00017189,2]
[398869271,1765941041814,-153.0,0.00017189,2]
[398869272,1765941041824,-153.0,0.00017189,2]
[398869273,1765941041833,-153.0,0.00017189,2]
[398869274,1765941041843,-8529.34,0.00017196,2]
[398869275,1765941041852,-612.0,0.00017229,2]
[398869276,1765941041861,-1261.0,0.00017229,2]
[398869277,1765941041872,-564.0,0.00017229,2]
[398869278,1765941041882,-911.0,0.00017229,2]
[398869279,1765941041891,-1197.0,0.00017229,2]
[398869280,1765941041902,-2427.0,0.00017229,2]
[398869281,1765941041911,-581.406,0.00017229,2]
[398869282,1765941041922,-4799.0,0.00017229,2]
[398869283,1765941041931,-4910.0,0.00017237,2]
[398869284,1765941041941,-933.85,0.0001726,3]
[398869285,1765941041952,-1041.13548811,0.00017264,2]
[398869286,1765941041961,-2129.62996497,0.00017264,2]
[398869287,1765941041971,-2500.0,0.00017264,2]
[398869288,1765941041980,-2500.0,0.00017264,2]
[398869289,1765941041993,-2351.0,0.00017269,2]
[398869290,1765941042003,-482.11411572,0.00017319,2]
[398869291,1765941042013,-862.39,0.00017335,2]
[398869292,1765941042023,-13736.93954689,0.00017344,2]
[398869293,1765941042032,-151.0,0.0001743,2]
[398869294,1765941042042,-17549.58715018,0.00017433,2]
[398869295,1765941042052,-933.85,0.00017534,4]
[398869296,1765941042062,-600.0,0.00017534,2]
[398869297,1765941042071,-300.0,0.00017554,2]
[398869298,1765941042081,-2000.0,0.00017554,2]
[398869299,1765941042091,-500.0,0.00017554,2]
[398869300,1765941042100,-2000.0,0.00017554,2]
[398869301,1765941042109,-463.81247583,0.00017554,2]
[398869302,1765941042119,-2000.0,0.00017554,2]
[398869303,1765941042129,-2000.0,0.00017554,2]
[398869304,1765941042139,-2000.0,0.00017554,2]
[398869305,1765941042149,-553.64373807,0.00017554,2]
[398869306,1765941042159,-1000.0,0.00017554,2]
[398869307,1765941042169,-2000.0,0.00017554,2]
[398869308,1765941042178,-1000.0,0.00017554,2]
[398869309,1765941042187,-2000.0,0.00017554,2]
[398869310,1765941042197,-1000.0,0.00017554,2]
[398869311,1765941042206,-2000.0,0.00017554,2]
[398869312,1765941042216,-1000.0,0.00017554,2]
[398869313,1765941042226,-2000.0,0.00017554,2]
[398869314,1765941042236,-1000.0,0.00017554,2]
[398869315,1765941042247,-2000.0,0.00017554,2]